bitfinex/quotes_SOLUSD_20240713
["timestamp","ask_amount","ask_price","bid_price","bid_amount"]
[1720909030433,1.24109807,140.72,140.67,11.96]
[1720909030638,13.20109807,140.72,140.67,11.96]
[1720909031146,11.96,140.71,140.66,8.7841083]
[1720909031353,11.96,140.69,140.66,8.7841083]
[1720909032055,13.20109807,140.7,140.66,8.7841083]
[1720909032352,11.96,140.7,140.66,8.7841083]
[1720909032736,11.96,140.71,140.66,20.7441083]
[1720909033267,13.20109807,140.72,140.67,11.96]
[1720909033559,1.24109807,140.72,140.67,11.96]
[1720909033737,1.24109807,140.72,140.68,1.42112899]
[1720909035444,13.20109807,140.72,140.67,11.96]
[1720909035752,13.20109807,140.72,140.66,11.96]
[1720909035970,13.20109807,140.72,140.67,45.0]
[1720909037260,11.96,140.71,140.67,45.0]
[1720909037959,1.24109807,140.7,140.64,20.0]
[1720909038167,1.24109807,140.7,140.66,11.96]
[1720909038364,1.24109807,140.7,140.65,56.96]
[1720909038665,1.24109807,140.7,140.66,20.0]
[1720909041460,1.24109807,140.7,140.66,31.96]
[1720909041637,1.24109807,140.7,140.66,20.0]
[1720909042441,1.24109807,140.7,140.66,31.96]
[1720909045567,13.20109807,140.7,140.63,16.20659829]
[1720909045748,13.20109807,140.7,140.64,76.96]
[1720909046544,11.96,140.69,140.64,76.96]
[1720909046758,1.24109807,140.68,140.64,65.0]
[1720909047039,1.24109807,140.68,140.64,31.96]
[1720909048346,1.24109807,140.68,140.65,11.96]
[1720909049672,1.24109807,140.68,140.64,31.96]
[1720909051079,1.24109807,140.7,140.65,11.96]
[1720909051254,13.20109807,140.7,140.66,1.42165587]
[1720909051557,1.24109807,140.7,140.66,13.38165587]
[1720909052171,1.24109807,140.7,140.66,11.96]
[1720909053668,13.20109807,140.7,140.65,11.96]
[1720909054775,13.20109807,140.7,140.64,20.0]
[1720909055172,11.96,140.68,140.64,31.96]
[1720909055377,1.24109807,140.67,140.64,31.96]
[1720909055974,13.20109807,140.68,140.64,31.96]
[1720909057173,1.24109807,140.67,140.64,31.96]
[1720909057355,1.24109807,140.67,140.64,20.0]
[1720909060565,13.20109807,140.68,140.63,19.38248999]
[1720909060766,13.20109807,140.68,140.64,20.0]
[1720909061284,1.24109807,140.67,140.64,20.0]
[1720909062285,13.20109807,140.68,140.64,20.0]
[1720909062460,16.74849807,140.69,140.64,20.0]
[1720909062664,16.74849807,140.69,140.65,11.96]
[1720909063071,28.70849807,140.69,140.64,20.0]
[1720909063275,28.70849807,140.69,140.64,31.96]
[1720909063681,11.96,140.68,140.64,20.0]
[1720909063871,13.20109807,140.68,140.64,20.0]
[1720909065164,1.24109807,140.67,140.64,20.0]
[1720909066196,13.20109807,140.68,140.64,20.0]
[1720909066569,1.24109807,140.68,140.64,31.96]
[1720909071793,13.20109807,140.68,140.64,20.0]
[1720909075784,13.20109807,140.68,140.63,19.38248999]
[1720909075785,11.96,140.67,140.63,7.42248999]
[1720909076101,1.24109807,140.66,140.63,7.42248999]
[1720909076299,13.20109807,140.66,140.63,7.42248999]
[1720909079292,1.24109807,140.66,140.63,7.42248999]
[1720909079994,27.1814,140.65,140.63,7.42248999]
[1720909080298,1.24109807,140.64,140.63,7.42248999]
[1720909080681,13.20109807,140.64,140.63,7.42248999]
[1720909083201,1.24109807,140.64,140.63,7.42248999]
[1720909087593,1.24109807,140.64,140.63,19.38248999]
[1720909089710,1.24109807,140.64,140.63,7.42248999]
[1720909089880,1.24109807,140.64,140.63,19.38248999]
[1720909090083,1.24109807,140.64,140.63,7.42248999]
[1720909093180,1.24109807,140.64,140.63,19.38248999]
[1720909094104,1.24109807,140.64,140.63,7.42248999]
[1720909094292,1.24109807,140.64,140.63,19.38248999]
[1720909095699,1.24109807,140.66,140.63,19.38248999]
[1720909095903,1.24109807,140.66,140.63,7.42248999]
[1720909096109,1.24109807,140.66,140.65,11.96]
[1720909096883,1.24109807,140.66,140.63,7.42248999]
[1720909097097,1.24109807,140.66,140.65,11.96]
[1720909097805,1.24109807,140.68,140.65,11.96]
[1720909097993,1.24109807,140.67,140.63,19.38248999]
[1720909098300,1.24109807,140.67,140.66,11.96]
[1720909098508,1.24109807,140.67,140.63,7.42248999]
[1720909098689,1.24109807,140.67,140.66,11.96]
[1720909099407,1.24109807,140.68,140.66,11.96]
[1720909099613,1.24109807,140.67,140.63,7.42248999]
[1720909099812,1.24109807,140.67,140.66,11.96]
[1720909099996,15.2214,140.69,140.63,7.42248999]
[1720909100192,15.2214,140.69,140.68,11.96]
[1720909101088,16.46249807,140.69,140.68,11.96]
[1720909101507,15.2214,140.69,140.68,11.96]
[1720909101702,1.24109807,140.69,140.68,11.96]
[1720909102511,1.24109807,140.69,140.63,55.26248999]
[1720909102814,1.24109807,140.71,140.64,65.0]
[1720909103015,1.24109807,140.71,140.7,11.96]
[1720909103198,10.88621984,140.71,140.7,11.96]
[1720909104508,10.88621984,140.71,140.64,45.0]
[1720909104690,1.24109807,140.71,140.7,11.96]
[1720909104886,20.68052872,140.71,140.69,11.96]
[1720909105094,9.64515237,140.7,140.69,11.96]
[1720909105797,9.64515237,140.7,140.68,11.96]
[1720909106016,1.24109807,140.69,140.68,11.96]
[1720909106191,1.24109807,140.71,140.68,11.96]
[1720909106393,1.24109807,140.7,140.68,11.96]
[1720909107117,1.24109807,140.7,140.63,55.26248999]
[1720909107297,1.24109807,140.69,140.68,11.96]
[1720909107498,1.24109807,140.71,140.68,11.96]
[1720909107713,1.24109807,140.7,140.68,11.96]
[1720909108014,1.24109807,140.7,140.63,7.42248999]
[1720909108407,1.24109807,140.7,140.67,11.96]
[1720909112820,1.24109807,140.7,140.63,8.84177727]
[1720909113022,1.24109807,140.7,140.67,11.96]
[1720909116400,1.24109807,140.7,140.63,7.42248999]
[1720909116602,1.24109807,140.7,140.67,11.96]
[1720909116904,11.96,140.69,140.64,11.96]
[1720909117107,1.24109807,140.68,140.64,11.96]
[1720909117306,1.24109807,140.67,140.65,11.96]
[1720909117606,1.24109807,140.69,140.66,11.96]
[1720909118234,1.24109807,140.69,140.63,7.42248999]
[1720909118426,1.24109807,140.69,140.66,11.96]
[1720909119930,1.24109807,140.69,140.67,11.96]
[1720909120131,1.24109807,140.68,140.67,11.96]
[1720909120516,1.24109807,140.71,140.67,11.96]
[1720909120714,10.88641808,140.7,140.67,11.96]
[1720909120914,1.24109807,140.7,140.67,11.96]
[1720909121621,1.24109807,140.69,140.67,11.96]
[1720909121802,1.24109807,140.71,140.67,11.96]
[1720909122006,10.88645862,140.7,140.67,11.96]
[1720909122206,1.24109807,140.7,140.67,11.96]
[1720909122407,1.24109807,140.7,140.68,11.96]
[1720909122902,1.24109807,140.69,140.68,11.96]
[1720909123110,1.24109807,140.71,140.68,11.96]
[1720909123319,1.24109807,140.7,140.67,11.96]
[1720909124642,1.24109807,140.7,140.66,11.96]
[1720909125903,1.24109807,140.7,140.63,7.42248999]
[1720909126320,1.24109807,140.7,140.66,11.96]
[1720909127328,13.20109807,140.7,140.65,11.96]
[1720909132134,1.24109807,140.7,140.65,11.96]
[1720909136340,9.64555055,140.69,140.65,11.96]
[1720909136540,1.24109807,140.68,140.66,11.96]
[1720909136743,21.96,140.71,140.66,11.96]
[1720909137034,19.4390978,140.7,140.66,11.96]
[1720909137246,21.96,140.71,140.66,11.96]
[1720909137416,19.43910733,140.7,140.66,11.96]
[1720909137620,21.96,140.71,140.66,11.96]
[1720909137819,1.24109807,140.69,140.66,11.96]
[1720909142836,1.24109807,140.69,140.63,7.42248999]
[1720909143036,1.24109807,140.69,140.66,11.96]
[1720909143538,1.24109807,140.68,140.67,11.96]
[1720909143739,1.24109807,140.71,140.67,11.96]
[1720909144052,20.68037008,140.7,140.67,11.96]
[1720909144341,9.6453947,140.69,140.67,11.96]
[1720909144650,1.24109807,140.68,140.67,11.96]
[1720909144824,1.24109807,140.71,140.63,7.42248999]
[1720909145029,20.68043689,140.7,140.67,11.96]
[1720909145230,1.24109807,140.7,140.67,11.96]
[1720909145831,1.24109807,140.7,140.68,11.96]
[1720909146032,1.24109807,140.69,140.63,7.42248999]
[1720909146232,1.24109807,140.71,140.68,11.96]
[1720909146427,20.6804412,140.7,140.67,11.96]
[1720909146627,10.88646356,140.7,140.67,11.96]
[1720909146834,1.24109807,140.7,140.67,11.96]
[1720909147034,1.24109807,140.7,140.63,7.42248999]
[1720909147233,9.64542156,140.69,140.67,11.96]
[1720909147439,1.24109807,140.68,140.67,11.96]
[1720909147636,1.24109807,140.71,140.66,11.96]
[1720909147836,20.68041582,140.7,140.66,11.96]
[1720909148134,1.24109807,140.7,140.67,11.96]
[1720909148624,1.24109807,140.7,140.68,11.96]
[1720909148933,16.3408,140.72,140.68,11.96]
[1720909148934,1.24109807,140.69,140.68,11.96]
[1720909149145,1.24109807,140.71,140.68,11.96]
[1720909149342,10.88635979,140.7,140.69,11.96]
[1720909150263,9.64505152,140.7,140.69,11.96]
[1720909151256,9.64505152,140.7,140.63,70.81658999]
[1720909151449,1.24109807,140.69,140.64,65.0]
[1720909151767,1.24109807,140.71,140.68,11.96]
[1720909151969,10.88617787,140.7,140.69,11.96]
[1720909152742,10.88617787,140.7,140.68,11.96]
[1720909152954,1.24109807,140.7,140.68,11.96]
[1720909153156,1.24109807,140.71,140.68,11.96]
[1720909153358,1.24109807,140.7,140.68,11.96]
[1720909153858,1.24109807,140.7,140.64,65.0]
[1720909154159,1.24109807,140.7,140.68,11.96]
[1720909154457,16.3408,140.72,140.68,11.96]
[1720909154458,1.24109807,140.71,140.68,11.96]
[1720909154636,10.8862077,140.7,140.68,11.96]
[1720909154956,1.24109807,140.7,140.69,11.96]
[1720909155355,10.88620849,140.7,140.68,11.96]
[1720909155558,1.24109807,140.7,140.68,11.96]
[1720909156260,1.24109807,140.71,140.68,11.96]
[1720909156454,10.88620708,140.7,140.68,11.96]
[1720909156656,1.24109807,140.7,140.69,11.96]
[1720909156856,9.6450713,140.7,140.69,11.96]
[1720909160064,1.24109807,140.72,140.69,11.96]
[1720909160273,19.44021895,140.71,140.7,11.96]
[1720909160439,19.44021426,140.71,140.7,11.96]
[1720909162445,9.64496028,140.71,140.7,11.96]
[1720909163782,1.24109807,140.72,140.7,11.96]
[1720909163985,9.64495317,140.71,140.7,11.96]
[1720909164273,1.24109807,140.72,140.7,11.96]
[1720909164560,9.64495317,140.71,140.7,11.96]
[1720909167276,1.24109807,140.72,140.7,11.96]
[1720909167465,9.64495393,140.71,140.7,11.96]
[1720909168267,9.64499164,140.71,140.7,11.96]
[1720909170974,9.64495393,140.71,140.7,11.96]
[1720909174182,1.24109807,140.72,140.7,11.96]
[1720909174371,9.64495393,140.71,140.7,11.96]
[1720909174561,91.69418614,140.71,140.65,11.96]
[1720909174766,11.96,140.69,140.59,23.1645]
[1720909174978,20.67825533,140.68,140.64,11.96]
[1720909175277,20.67825533,140.68,140.63,9.644954]
[1720909175278,10.88761142,140.67,140.63,9.644954]
[1720909175572,10.88761142,140.67,140.64,11.96]
[1720909175573,1.24109807,140.67,140.64,11.96]
[1720909175880,9.64727829,140.66,140.64,11.96]
[1720909176051,1.24109807,140.67,140.64,11.96]
[1720909176258,9.64739329,140.66,140.64,11.96]
[1720909176584,1.24109807,140.67,140.64,11.96]
[1720909177381,1.24109807,140.68,140.64,11.96]
[1720909177569,20.67647546,140.67,140.64,11.96]
[1720909177877,1.24109807,140.67,140.59,23.1645]
[1720909178082,1.24109807,140.67,140.64,11.96]
[1720909178479,11.96,140.69,140.64,11.96]
[1720909178773,32.63617598,140.68,140.63,11.96]
[1720909178960,20.67617598,140.67,140.63,11.96]
[1720909179160,1.24109807,140.67,140.63,11.96]
[1720909179558,1.24109807,140.67,140.6,65.0]
[1720909179761,1.24109807,140.67,140.63,11.96]
[1720909183988,15.9313,140.66,140.62,11.96]
[1720909184282,1.24109807,140.65,140.62,11.96]
[1720909184481,1.24109807,140.64,140.62,11.96]
[1720909184683,1.24109807,140.64,140.61,11.96]
[1720909185462,1.24109807,140.65,140.61,11.96]
[1720909185681,1.24109807,140.64,140.61,11.96]
[1720909186680,1.24109807,140.63,140.56,16.4002]
[1720909186872,1.24109807,140.63,140.59,11.96]
[1720909189675,1.24109807,140.63,140.6,11.96]
[1720909189874,1.24109807,140.64,140.6,11.96]
[1720909198174,1.24109807,140.64,140.57,45.0]
[1720909198382,1.24109807,140.64,140.6,11.96]
[1720909199890,13.20109807,140.64,140.6,11.96]
[1720909200391,13.20109807,140.64,140.59,11.96]
[1720909200888,1.24109807,140.64,140.57,45.0]
[1720909201099,1.24109807,140.64,140.52,43.6733]
[1720909201273,11.96,140.63,140.58,11.96]
[1720909201473,1.24109807,140.62,140.58,11.96]
[1720909201676,1.24109807,140.62,140.52,15.782]
[1720909201889,1.24109807,140.62,140.58,11.96]
[1720909203293,17.44209807,140.62,140.58,11.96]
[1720909207204,17.44209807,140.62,140.54,11.96]
[1720909207406,11.96,140.6,140.52,15.782]
[1720909207580,1.24109807,140.59,140.51,22.4486]
[1720909207893,1.24109807,140.59,140.55,11.96]
[1720909209386,13.20109807,140.59,140.54,11.96]
[1720909209587,1.24109807,140.58,140.54,11.96]
[1720909210186,1.24109807,140.58,140.51,11.96]
[1720909210503,1.24109807,140.57,140.53,11.96]
[1720909211904,13.20109807,140.57,140.49,27.742]
[1720909212087,13.20109807,140.57,140.52,11.96]
[1720909212285,13.20109807,140.57,140.5,45.0]
[1720909212590,13.20109807,140.57,140.52,11.96]
[1720909213298,13.20109807,140.57,140.49,11.96]
[1720909213299,6.3961,140.56,140.49,11.96]
[1720909213600,11.96,140.54,140.5,11.96]
[1720909213788,1.24109807,140.53,140.49,11.96]
[1720909214887,17.44209807,140.53,140.46,11.96]
[1720909215088,17.44209807,140.53,140.49,11.96]
[1720909215287,17.44209807,140.53,140.47,20.0]
[1720909215487,17.44209807,140.53,140.49,11.96]
[1720909216998,17.44209807,140.53,140.47,20.0]
[1720909216999,11.96,140.52,140.47,31.96]
[1720909217207,1.24109807,140.51,140.47,31.96]
[1720909217581,1.24109807,140.51,140.47,20.0]
[1720909217781,1.24109807,140.51,140.47,11.96]
[1720909218005,1.24109807,140.51,140.48,20.0]
[1720909218206,1.24109807,140.51,140.48,31.96]
[1720909218504,1.24109807,140.51,140.48,20.0]
[1720909218707,1.24109807,140.51,140.48,11.96]
[1720909219284,7.45979807,140.51,140.43,23.34262789]
[1720909219593,7.45979807,140.51,140.46,11.96]
[1720909219594,19.41979807,140.51,140.46,11.96]
[1720909219786,1.24109807,140.5,140.46,11.96]
[1720909221409,27.6582,140.49,140.43,16.201]
[1720909221595,27.6582,140.49,140.38,15.091]
[1720909221596,13.20109807,140.48,140.38,15.091]
[1720909221909,13.20109807,140.48,140.43,11.96]
[1720909223293,13.20109807,140.48,140.38,31.292]
[1720909223607,13.20109807,140.48,140.43,11.96]
[1720909224304,18.1787,140.47,140.39,20.0]
[1720909224510,13.20109807,140.46,140.39,20.0]
[1720909224808,13.20109807,140.46,140.36,6.3527]
[1720909224809,1.24109807,140.45,140.37,20.0]
[1720909225005,15.6982,140.44,140.35,50.971]
[1720909225200,15.6982,140.44,140.41,11.96]
[1720909225605,1.24109807,140.43,140.41,11.96]
[1720909226894,1.24109807,140.43,140.37,11.96]
[1720909227213,1.24109807,140.43,140.41,11.96]
[1720909227603,16.93929807,140.44,140.41,11.96]
[1720909228817,15.6982,140.44,140.41,11.96]
[1720909229312,1.24109807,140.43,140.41,11.96]
[1720909232494,15.6982,140.44,140.38,65.0]
[1720909233115,15.6982,140.44,140.41,11.96]
[1720909233498,15.6982,140.44,140.42,11.96]
[1720909233812,15.6982,140.44,140.38,65.0]
[1720909234109,15.6982,140.44,140.42,11.96]
[1720909234491,15.6982,140.44,140.38,65.0]
[1720909234695,15.6982,140.44,140.41,11.96]
[1720909234909,15.6982,140.44,140.42,11.96]
[1720909236621,1.24109807,140.43,140.41,11.96]
[1720909236802,15.6982,140.44,140.41,11.96]
[1720909237117,15.6982,140.44,140.38,65.0]
[1720909237317,15.6982,140.44,140.41,11.96]
[1720909238104,15.6982,140.44,140.38,65.0]
[1720909238307,15.6982,140.44,140.41,11.96]
[1720909238608,6.2896,140.43,140.38,65.0]
[1720909238807,7.53069807,140.43,140.4,11.96]
[1720909239621,6.2896,140.43,140.38,65.0]
[1720909239800,15.6982,140.44,140.42,11.96]
[1720909242318,15.6982,140.44,140.41,11.96]
[1720909242822,15.6982,140.44,140.4,11.96]
[1720909243736,15.6982,140.44,140.41,11.96]
[1720909245424,15.6982,140.44,140.38,65.0]
[1720909245615,15.6982,140.44,140.41,11.96]
[1720909246926,15.6982,140.44,140.4,11.96]
[1720909247730,15.6982,140.44,140.38,65.0]
[1720909247731,1.24109807,140.43,140.38,65.0]
[1720909247928,1.24109807,140.43,140.4,11.96]
[1720909248125,1.24109807,140.43,140.38,20.0]
[1720909248322,7.53069807,140.43,140.36,20.0]
[1720909248522,7.53069807,140.43,140.39,11.96]
[1720909248739,7.53069807,140.43,140.37,45.0]
[1720909248929,7.53069807,140.43,140.39,11.96]
[1720909249836,7.53069807,140.43,140.4,11.96]
[1720909252720,15.6982,140.44,140.38,20.0]
[1720909253035,15.6982,140.44,140.43,11.96]
[1720909255144,15.6982,140.44,140.39,45.0]
[1720909255351,15.6982,140.44,140.42,11.96]
[1720909255522,15.6982,140.44,140.41,11.96]
[1720909259222,15.6982,140.44,140.42,11.96]
[1720909261957,6.2896,140.46,140.43,11.96]
[1720909262256,6.2896,140.46,140.45,11.96]
[1720909262449,6.2896,140.46,140.38,20.0]
[1720909262660,1.24109807,140.45,140.42,11.96]
[1720909263074,7.53069807,140.46,140.42,11.96]
[1720909263366,7.53069807,140.46,140.43,11.96]
[1720909263568,1.24109807,140.45,140.37,20.0]
[1720909264076,1.24109807,140.45,140.4,11.96]
[1720909264572,1.24109807,140.45,140.41,11.96]
[1720909264867,13.20109807,140.45,140.38,45.0]
[1720909265045,13.20109807,140.45,140.4,11.96]
[1720909265563,9.65787656,140.44,140.4,11.96]
[1720909265766,1.24109807,140.43,140.4,11.96]
[1720909266771,1.24109807,140.44,140.4,11.96]
[1720909267478,9.75352448,140.43,140.35,15.6982]
[1720909267648,1.24109807,140.42,140.39,11.96]
[1720909267847,1.24109807,140.42,140.38,11.96]
[1720909268242,1.24109807,140.42,140.34,11.96]
[1720909268442,1.24109807,140.42,140.38,11.96]
[1720909268649,13.20109807,140.42,140.37,11.96]
[1720909269665,19.65449807,140.42,140.34,11.96]
[1720909269863,19.65449807,140.42,140.35,20.0]
[1720909270047,11.96,140.41,140.36,11.96]
[1720909270248,1.24109807,140.4,140.36,11.96]
[1720909270562,1.24109807,140.4,140.37,11.96]
[1720909270764,1.24109807,140.41,140.38,11.96]
[1720909272548,1.24109807,140.41,140.35,20.0]
[1720909272750,1.24109807,140.41,140.37,11.96]
[1720909274269,13.20109807,140.41,140.37,11.96]
[1720909274765,1.24109807,140.41,140.37,11.96]
[1720909283772,1.24109807,140.41,140.33,20.0]
[1720909283960,1.24109807,140.41,140.37,11.96]
[1720909285054,7.69449807,140.42,140.35,11.96]
[1720909285259,7.69449807,140.42,140.39,11.96]
[1720909286460,7.69449807,140.42,140.34,45.0]
[1720909286660,7.69449807,140.42,140.38,11.96]
[1720909289058,7.69449807,140.42,140.34,45.0]
[1720909289255,7.69449807,140.42,140.38,11.96]
[1720909289782,19.65449807,140.42,140.37,11.96]
[1720909290260,7.69449807,140.42,140.37,11.96]
[1720909290575,7.69449807,140.42,140.38,11.96]
[1720909290785,19.65449807,140.42,140.37,11.96]
[1720909292181,11.96,140.41,140.36,11.96]
[1720909292479,1.24109807,140.4,140.36,11.96]
[1720909292684,1.24109807,140.39,140.33,20.0]
[1720909292878,1.24109807,140.39,140.35,11.96]
[1720909293678,15.8006,140.38,140.35,11.96]
[1720909295476,1.24109807,140.37,140.35,11.96]
[1720909295895,1.24109807,140.37,140.34,11.96]
[1720909296687,1.24109807,140.37,140.32,20.0]
[1720909296886,7.47709807,140.37,140.33,11.96]
[1720909299273,7.47709807,140.37,140.34,11.96]
[1720909299873,6.236,140.37,140.34,11.96]
[1720909301385,6.236,140.37,140.29,35.8006]
[1720909301688,6.236,140.37,140.34,11.96]
[1720909302281,6.236,140.37,140.29,35.8006]
[1720909302282,1.24109807,140.36,140.29,35.8006]
[1720909302486,7.47709807,140.37,140.34,11.96]
[1720909303882,7.47709807,140.37,140.35,11.96]
[1720909304077,7.47709807,140.37,140.34,11.96]
[1720909304277,7.47709807,140.37,140.35,11.96]
[1720909305271,6.236,140.37,140.35,11.96]
[1720909306895,15.8006,140.38,140.36,11.96]
[1720909307197,15.8006,140.38,140.29,35.8006]
[1720909307375,15.8006,140.38,140.36,11.96]
[1720909308397,15.8006,140.38,140.3,45.8773706]
[1720909308696,15.8006,140.38,140.35,11.96]
[1720909309581,1.24109807,140.37,140.34,11.96]
[1720909310905,7.47709807,140.37,140.31,20.0]
[1720909311076,7.47709807,140.37,140.34,11.96]
[1720909312389,7.47709807,140.37,140.31,20.0]
[1720909312582,7.47709807,140.37,140.34,11.96]
[1720909312789,7.47709807,140.37,140.33,11.96]
[1720909313894,7.47709807,140.37,140.34,11.96]
[1720909315289,7.47709807,140.37,140.33,11.96]
[1720909316876,7.47709807,140.37,140.31,20.0]
[1720909317078,7.47709807,140.37,140.3,20.8773706]
[1720909317278,7.47709807,140.37,140.33,11.96]
[1720909317807,11.96,140.36,140.3,0.8773706]
[1720909317998,1.24109807,140.35,140.3,0.8773706]
[1720909318195,13.20109807,140.35,140.3,12.8373706]
[1720909318876,6.236,140.37,140.31,11.96]
[1720909318877,11.96,140.36,140.31,11.96]
[1720909319077,1.24109807,140.35,140.31,11.96]
[1720909320378,15.1693,140.34,140.3,0.8773706]
[1720909320575,1.24109807,140.33,140.31,11.96]
[1720909320797,15.1693,140.34,140.32,11.96]
[1720909321283,15.1693,140.34,140.31,11.96]
[1720909321700,1.24109807,140.33,140.31,11.96]
[1720909322279,15.1693,140.34,140.3,0.8773706]
[1720909322479,15.1693,140.34,140.32,11.96]
[1720909322885,15.1693,140.34,140.33,11.96]
[1720909323486,1.24109807,140.36,140.33,11.96]
[1720909323695,1.24109807,140.36,140.34,11.96]
[1720909324399,11.96,140.35,140.3,0.8773706]
[1720909324590,1.24109807,140.34,140.3,0.8773706]
[1720909324787,21.4053,140.37,140.3,0.8773706]
[1720909324788,1.24109807,140.36,140.32,11.96]
[1720909324990,1.24109807,140.35,140.32,11.96]
[1720909325189,1.24109807,140.35,140.3,0.8773706]
[1720909325411,13.20109807,140.35,140.3,12.8373706]
[1720909325707,15.1693,140.34,140.3,12.8373706]
[1720909325893,1.24109807,140.33,140.3,12.8373706]
[1720909326788,1.24109807,140.32,140.3,0.8773706]
[1720909326996,1.24109807,140.32,140.3,12.8373706]
[1720909327198,1.24109807,140.33,140.3,0.8773706]
[1720909327395,1.24109807,140.33,140.3,12.8373706]
[1720909327599,1.24109807,140.33,140.31,11.96]
[1720909328601,15.1693,140.34,140.3,0.8773706]
[1720909328809,15.1693,140.34,140.33,11.96]
[1720909329303,15.1693,140.34,140.31,11.96]
[1720909329705,15.1693,140.34,140.3,0.8773706]
[1720909329706,15.1693,140.34,140.33,11.96]
[1720909330697,15.1693,140.34,140.32,11.96]
[1720909330901,15.1693,140.34,140.31,11.96]
[1720909331393,1.24109807,140.33,140.3,0.8773706]
[1720909331587,1.24109807,140.33,140.31,11.96]
[1720909332113,1.24109807,140.33,140.3,0.8773706]
[1720909332297,1.24109807,140.33,140.31,11.96]
[1720909333320,1.24109807,140.33,140.3,0.8773706]
[1720909333527,1.24109807,140.33,140.31,11.96]
[1720909333843,1.24109807,140.33,140.3,12.8373706]
[1720909334795,1.24109807,140.33,140.3,0.8773706]
[1720909335529,1.24109807,140.33,140.3,12.8373706]
[1720909335695,7.44079807,140.33,140.3,0.8773706]
[1720909336019,1.24109807,140.32,140.3,12.8373706]
[1720909336390,1.24109807,140.32,140.3,0.8773706]
[1720909345030,23.1456,140.31,140.24,15.1693]
[1720909345236,13.20109807,140.3,140.25,11.96]
[1720909345437,1.24109807,140.29,140.25,11.96]
[1720909345639,1.24109807,140.29,140.21,23.1456]
[1720909345834,1.24109807,140.29,140.25,11.96]
[1720909348450,1.24109807,140.29,140.21,70.9856]
[1720909348742,1.24109807,140.29,140.22,65.0]
[1720909348944,13.20109807,140.29,140.25,11.96]
[1720909349134,1.24109807,140.28,140.25,11.96]
[1720909350931,1.24109807,140.28,140.22,65.0]
[1720909351354,1.24109807,140.28,140.24,11.96]
[1720909351547,1.24109807,140.28,140.25,11.96]
[1720909352639,1.24109807,140.28,140.22,20.0]
[1720909352839,1.24109807,140.28,140.24,11.96]
[1720909353251,1.24109807,140.28,140.22,20.0]
[1720909353632,1.24109807,140.28,140.24,11.96]
[1720909354654,16.5265,140.27,140.23,11.96]
[1720909354849,1.24109807,140.26,140.2,20.0]
[1720909355043,1.24109807,140.26,140.23,11.96]
[1720909355243,1.24109807,140.26,140.19,20.0]
[1720909355855,1.24109807,140.26,140.22,11.96]
[1720909356856,1.24109807,140.26,140.23,11.96]
[1720909358829,1.24109807,140.26,140.19,16.5265]
[1720909359062,1.24109807,140.26,140.2,11.96]
[1720909359569,1.24109807,140.26,140.23,11.96]
[1720909360273,1.24109807,140.26,140.16,0.8773706]
[1720909360474,1.24109807,140.26,140.22,11.96]
[1720909360960,13.20109807,140.26,140.22,11.96]
[1720909362191,13.20109807,140.26,140.16,0.8773706]
[1720909362476,13.20109807,140.26,140.21,11.96]
[1720909362979,1.24109807,140.26,140.22,11.96]
[1720909363768,1.24109807,140.26,140.23,11.96]
[1720909364551,1.24109807,140.26,140.22,11.96]
[1720909364745,13.20109807,140.26,140.21,11.96]
[1720909366080,13.20109807,140.26,140.16,71.8773706]
[1720909366270,13.20109807,140.26,140.21,11.96]
[1720909366789,13.20109807,140.26,140.22,11.96]
[1720909367085,13.20109807,140.26,140.21,11.96]